Cogmind - Beta 16.1 @@@ ROGUE MODE // 2026.02.16 @ 01:04:10 Player: unq Result: Destroyed by H-66 Slayer with Gauss Rifle Performance ------------- Evolutions (3) 1500 Regions Visited (17) 3400 Robots Destroyed (333) 1665 Value Destroyed (14412) 14412 Prototype IDs (24) 480 Alien Tech Used (1) 200 Bonus (5069) 5069 TOTAL SCORE: 26726 Bonus ------- High Alert Combat Kills 3580 Follower Combat Kills 359 Entered Garrisons 600 Met Data Miner 300 Acquired ECA 300 Friendly Fire -70 Cogmind --------- Core Integrity 0/700 Matter 225/300 Energy 193/300 System Corruption 16% Temperature Warning (345) Movement Core (1050) Ox20 Location -6/Proximity Caves Parts ------- > --- POWER (1) -------- Enhanced Nuclear Core (fused) > --- PROPULSION (6) --- (None) > --- UTILITY (4) ------ High-capacity Storage Unit Advanced Particle Charger Graphene Brace Experimental Thermal Shield > --- WEAPON (3) ------- Thermic Laser Enhanced Autogun > --- INVENTORY (20) --- Makeshift Power Source Improved Cooling System Improved Cooling System High-capacity Battery (250) Energy Well (350) High-capacity Matter Pod (200) Structural Scanner Experimental Sensor Array Seismic Detector EM Disruption Field Flak Gun Flak Gun Flak Gun Proton Missile Launcher Rocket Launcher Plasma Cutter Chainsword Spear Peak State ------------ > --- POWER ------------ Enhanced Nuclear Core > --- PROPULSION ------- Wheel Armored Huge Wheel Armored Huge Wheel > --- UTILITY ---------- High-capacity Storage Unit Experimental Sensor Array Improved Heavy Armor Plating > --- WEAPON ----------- Quantum Rifle Enhanced Autogun Railgun > --- INVENTORY -------- Enhanced Nuclear Core Improved Heat Sink Improved Cooling System High-capacity Matter Pod Structural Scanner Improved Light Armor Plating Improved Heavy Armor Plating Medium Reflective Plating Graphene Brace EM Disruption Field Phase Cannon Enhanced Autogun Enhanced Autogun Flak Gun Precision Assault Rifle Proton Missile Launcher Rocket Launcher Plasma Cutter [Rating: 68] Favorites ----------- Power Improved Ion Engine Engine Improved Ion Engine Power Core Enhanced Nuclear Core Propulsion Light Treads Treads Light Treads Leg Aluminum Leg Wheel Armored Huge Wheel Utility High-capacity Storage Unit Device Seismic Detector Storage High-capacity Storage Unit Processor Machine Analyzer Hackware Hacking Suite Protection Improved Heavy Armor Plating Weapon Advanced Beam Cannon Energy Gun Advanced Beam Rifle Energy Cannon Advanced Beam Cannon Ballistic Gun Improved Assault Rifle Ballistic Cannon Light Cannon Launcher Rocket Launcher Special Weapon Plasma Cutter Impact Weapon Maul Slashing Weapon Scythe Build | -11 -10 -10 -9 -9 -9 -8 -8 -8 -8 -8 -7 -7 -7 -7 -7 -7 -6 ------- Run | Yrd Mat Min Mat Min Exi Min Mat Gar Sto Gar Fac Gar Fac Low Low Dat Pro Slots Evolved 6 | . . . 2 . . . 2 . . . 2 . . . . . . Power . | . . . . . . . . . . . . . . . . . . Propulsion 3 | . . . 1 . . . 1 . . . 1 . . . . . . Utility 2 | . . . . . . . 1 . . . 1 . . . . . . Weapon 1 | . . . 1 . . . . . . . . . . . . . . Parts Attached 176 | 7 10 1 33 2 . 1 16 9 . 16 32 27 11 6 2 . 3 Power 21 | 1 3 . 3 . . . 2 2 . 2 5 1 1 1 . . . Engine 12 | 1 3 . 2 . . . 1 2 . 2 1 . . . . . . Core 9 | . . . 1 . . . 1 . . . 4 1 1 1 . . . Reactor . | . . . . . . . . . . . . . . . . . . Propulsion 68 | 2 3 . 16 . . . 6 5 . 8 9 15 3 1 . . . Treads 32 | . . . 16 . . . 6 5 . . . 4 . 1 . . . Leg 30 | 2 3 . . . . . . . . 8 6 11 . . . . . Wheel 6 | . . . . . . . . . . . 3 . 3 . . . . Hover . | . . . . . . . . . . . . . . . . . . Flight . | . . . . . . . . . . . . . . . . . . Utility 43 | 2 2 1 5 1 . . 4 1 . 1 11 8 2 3 . . 2 Device 22 | 1 . 1 3 1 . . 2 . . 1 7 1 . 3 . . 2 Storage 4 | 1 1 . 1 . . . . . . . 1 . . . . . . Processor 2 | . . . . . . . . . . . 1 . 1 . . . . Hackware 1 | . . . . . . . . . . . . 1 . . . . . Protection 14 | . 1 . 1 . . . 2 1 . . 2 6 1 . . . . Artifact . | . . . . . . . . . . . . . . . . . . Weapon 44 | 2 2 . 9 1 . 1 4 1 . 5 7 3 5 1 2 . 1 Energy Gun 7 | . 1 . 1 . . . 3 . . . . . 1 . . . 1 Energy Cannon 5 | . . . 3 . . . 1 . . 1 . . . . . . . Ballistic Gun 24 | 2 . . 4 1 . 1 . 1 . 2 5 3 3 1 1 . . Ballistic Cannon 2 | . 1 . . . . . . . . . 1 . . . . . . Launcher 2 | . . . . . . . . . . . 1 . . . 1 . . Special Weapon 1 | . . . . . . . . . . 1 . . . . . . . Impact Weapon 1 | . . . 1 . . . . . . . . . . . . . . Slashing Weapon 2 | . . . . . . . . . . 1 . . 1 . . . . Piercing Weapon . | . . . . . . . . . . . . . . . . . . Special Melee Weapon . | . . . . . . . . . . . . . . . . . . Unidentified Prototypes 12 | . . . 3 1 . . 3 . . . 2 . 1 1 . . 1 Parts Lost 56 | . 2 1 . . . . 5 7 . 8 15 4 4 . 1 . 9 Power 6 | . 1 . . . . . . 1 . . 3 1 . . . . . Propulsion 23 | . 1 . . . . . 2 5 . 4 7 . . . . . 4 Utility 17 | . . 1 . . . . 2 1 . 2 4 3 1 . 1 . 2 Weapon 10 | . . . . . . . 1 . . 2 1 . 3 . . . 3 Highest Loss Streak 5 | . 1 1 . . . . 1 3 . 3 3 3 2 . 1 . 5 To Critical Strikes . | . . . . . . . . . . . . . . . . . . Average Backups 17 | 2 9 10 18 19 20 20 19 19 20 19 18 19 18 20 19 19 17 Power . | . . . . 1 1 1 1 . . . . . 1 1 1 1 1 Propulsion 1 | 1 2 3 . 1 1 1 1 . 1 2 2 2 . . . . . Utility 7 | . 4 3 9 9 10 10 9 7 7 5 6 7 8 10 9 8 7 Weapon 7 | . 2 3 7 7 7 7 7 9 10 8 7 7 7 8 7 9 8 Tool/Special . | . . . . . . . . . . . . . . . . . . Unused Backups 40 | . 4 . 10 2 . . 3 1 . . 9 3 3 1 . . 4 Power 4 | . . . . . . . . . . . 2 . 1 . . . 1 Propulsion 1 | . . . 1 . . . . . . . . . . . . . . Utility 18 | . 3 . 5 1 . . 2 . . . 2 1 1 1 . . 2 Weapon 16 | . 1 . 4 1 . . 1 1 . . 4 2 1 . . . 1 Tool/Special 1 | . . . . . . . . . . . 1 . . . . . . Average Slot Usage (%) 94 | . 99 99 99 100 100 100 98 99 100 97 93 96 77 75 79 65 73 Engine 5 | . 13 14 4 11 11 11 4 9 9 9 1 . . . . . . Core 3 | . . . 6 . . . 4 . . . 4 6 7 6 7 7 7 Treads 15 | . . . 32 33 33 33 34 35 36 9 . 4 2 2 7 7 6 Leg 12 | . 27 28 . . . . . . . 24 33 33 . . . . . Wheel 3 | . . . . . . . . . . . 2 . 20 21 21 21 10 Device 9 | . 5 11 10 11 11 11 9 9 9 16 9 6 7 7 8 14 19 Storage 9 | . 14 14 11 11 11 11 9 9 9 9 7 7 7 7 7 7 7 Protection 5 | . 8 1 . . . . 8 9 9 1 5 11 7 7 7 7 1 Energy Gun 2 | . 3 14 2 . . . 1 9 9 2 . . 5 . . . . Energy Cannon 8 | . . . 18 16 22 19 9 9 9 15 6 1 . . . . 5 Ballistic Gun 14 | . 21 14 9 16 11 13 15 9 9 9 14 20 16 19 20 1 15 Peak Build Rating 68 | 7 9 9 25 30 23 24 32 35 35 35 46 57 68 58 59 57 57 Average Rating 32 | 5 8 8 19 22 23 23 27 32 35 30 37 51 62 54 57 45 47 On Entrance 31 | . 7 9 9 21 23 23 23 31 35 35 30 46 55 56 56 57 57 Avg Prop Armor Cover (%) 7 | . . . . . . . . . . 7 11 2 3 5 5 9 10 Naked Turns . | . . . . . . . . . . . . . . . . . . Heaviest Build 83 | 13 23 23 60 60 59 60 68 68 67 70 76 83 82 76 80 68 76 Greatest Support 88 | 20 20 20 66 66 66 66 86 82 80 80 66 88 88 66 66 66 66 Greatest Overweight (x) 7 | . 2 1 . . . . 1 1 . 6 7 1 2 1 1 1 3 Average Overweight (x) . | . . . . . . . . . . . 1 . . 1 1 . 1 Largest Inventory Capacity 20 | 8 10 10 20 20 20 20 20 20 20 20 20 20 20 20 20 20 20 Average Capacity 18 | 6 9 10 19 20 20 20 20 20 20 20 20 20 20 20 20 20 20 Most Carried 20 | 5 10 10 20 20 20 20 20 20 20 20 20 20 20 20 20 20 20 Average Carried 18 | 2 9 9 18 19 20 20 19 19 20 19 19 19 19 19 19 19 17 Final Capacity 20 | 8 10 10 20 20 20 20 20 20 20 20 20 20 20 20 20 20 20 Final Carried 20 | 5 10 10 20 20 20 20 20 20 20 20 20 20 20 20 17 17 18 Class Distribution -------------------- 36% | Scavenger-Tank 16% | Scavenger-Mutant 15% | Scavenger-Gunner 12% | Tank 12% | Gunner 6% | Mutant Dominant Class ---------------- Scavenger-Mutant | -10/Materials Scavenger-Mutant | -10/Mines Scavenger-Gunner | -9/Materials Gunner | -9/Mines Gunner | -9/Exiles Gunner | -8/Mines Scavenger-Tank | -8/Materials Scavenger-Tank | -8/Garrison Scavenger-Tank | -8/Storage Scavenger-Gunner | -8/Garrison Scavenger-Tank | -7/Factory Scavenger-Tank | -7/Garrison Tank | -7/Factory Tank | -7/Lower Caves Scavenger-Tank | -7/Lower Caves Mutant | -7/Data Miner Scavenger-Tank | -6/Proximity Caves Resources | -11 -10 -10 -9 -9 -9 -8 -8 -8 -8 -8 -7 -7 -7 -7 -7 -7 -6 ----------- Run | Yrd Mat Min Mat Min Exi Min Mat Gar Sto Gar Fac Gar Fac Low Low Dat Pro Matter Collected 10543 | 241 579 47 1052 94 . 148 940 424 . 624 1545 2165 1208 288 807 . 381 Remotely . | . . . . . . . . . . . . . . . . . . Salvage Created 13169 | 168 570 59 1849 . . 330 1376 1077 . 1243 1688 2319 1544 110 568 . 268 Parts 727 | 10 43 2 129 2 . 27 70 46 . 67 108 87 99 8 24 . 5 Haulers Intercepted 13 | . 2 . 5 . . . 2 . . . 1 . 3 . . . . Recyclers Shooed 5 | . 1 . . . . . 1 . . . 3 . . . . . . Parts Field Recycled . | . . . . . . . . . . . . . . . . . . Retrieved Matter . | . . . . . . . . . . . . . . . . . . Parts Self-Destructed 37 | . . . . . . . . . . . . . . 7 17 . 13 Prevented 6 | . . . . . . . . . . . . . . . 6 . . Parts Restored . | . . . . . . . . . . . . . . . . . . Kills | -11 -10 -10 -9 -9 -9 -8 -8 -8 -8 -8 -7 -7 -7 -7 -7 -7 -6 ------- Run | Yrd Mat Min Mat Min Exi Min Mat Gar Sto Gar Fac Gar Fac Low Low Dat Pro Combat Hostiles Destroyed 271 | . 10 4 40 . . 14 26 24 . 33 30 38 28 4 14 . 6 Melee 2 | . . . . . . . . . . . 2 . . . . . . Guns 180 | . 8 4 10 . . 8 14 17 . 12 22 38 28 4 12 . 3 Cannons 76 | . 2 . 29 . . 6 10 7 . 20 1 . . . . . 1 AOE 9 | . . . . . . . . . . . 5 . . . 2 . 2 Classes Destroyed 22 | 3 4 2 5 . . . 1 2 . 2 2 . . 1 . . . Worker 11 | 1 1 . . . . . 1 . . . 7 . 1 . . . . Builder 11 | . . . 2 1 . 1 . . . . 4 . 3 . . . . Tunneler 8 | 3 3 1 . . . . . . . . . . 1 . . . . Hauler 13 | . 2 . 5 . . . 2 . . . 1 . 3 . . . . Recycler 3 | 1 . . . . . . . . . . 2 . . . . . . Mechanic 3 | . . . 2 . . . . . . . 1 . . . . . . Operator 5 | . . . 1 . . . 1 . . . 2 . 1 . . . . Watcher 10 | . 3 . 4 . . . 2 . . . . . 1 . . . . Swarmer 59 | . 3 1 13 . . 11 4 3 . 11 . 7 . 3 3 . . Cutter 7 | . . . . . . . . . . 3 4 . . . . . . Grunt 131 | . 7 . 16 . . 3 16 11 . 13 15 21 17 . 6 . 6 Brawler 2 | . . . . . . . . . . . 2 . . . . . . Duelist 3 | . . . . . . . . . . 1 . 1 . . 1 . . Protector 4 | . . . 1 . . . . . . . 2 . 1 . . . . Sentry 35 | . . . 10 . . . 5 5 . 3 . 7 5 . . . . Demolisher 1 | . . 1 . . . . . . . . . . . . . . . Specialist 1 | . . . . . . . . 1 . . . . . . . . . Hunter 8 | . . . . . . . 1 1 . . 1 1 2 . 2 . . Programmer 15 | . . . . . . . . 3 . 2 5 1 3 . 1 . . Heavy 1 | . . . . . . . . . . . 1 . . . . . . Assembled 2 | . . 2 . . . . . . . . . . . . . . . Savage 1 | . . . . . . . . . . . . . . . 1 . . Mutant 1 | . . . . . . . . . . . . . . 1 . . . Best Kill Streak 10 | 3 3 1 6 1 . 5 5 8 . 6 10 5 5 3 7 . 3 Combat Bots Only 8 | . 3 1 6 . . 4 5 8 . 6 8 5 5 3 7 . 3 Max Kills in Single Turn 3 | 1 1 1 2 1 . 2 1 2 . 2 3 2 2 1 3 . 1 Gunslinging 2 | . . . . . . . . 1 . . . 1 1 . 2 . . Exploded 2 | . . . . . . . . . . . 2 . . . 1 . 1 Melee 1 | . . . . . . . . . . . 1 . . . . . . Uniques/NPCs Destroyed . | . . . . . . . . . . . . . . . . . . Combat | -11 -10 -10 -9 -9 -9 -8 -8 -8 -8 -8 -7 -7 -7 -7 -7 -7 -6 -------- Run | Yrd Mat Min Mat Min Exi Min Mat Gar Sto Gar Fac Gar Fac Low Low Dat Pro Hostile Shots Fired 1474 | . 59 15 107 . . 53 119 104 . 174 197 304 158 13 104 . 67 Missed 398 | . 14 2 28 . . 8 20 29 . 52 52 108 41 4 23 . 17 Hits 1076 | . 45 13 79 . . 45 99 75 . 122 145 196 117 9 81 . 50 Melee 22 | . . . . . . . . . . 3 10 . . 1 6 . 2 Projectile 1054 | . 45 13 79 . . 45 99 75 . 119 135 196 117 8 75 . 48 AOE 12 | . . 5 . . . . . . . 3 4 . . . . . . Critical Strikes 35 | . 1 . 3 . . . 6 3 . 8 6 1 4 . 3 . . Actively Blocked 1 | . . . . . . . . . . . . . . . 1 . . Damage Taken 14397 | . 559 295 915 . . 443 1372 1127 . 1612 2690 1849 1456 118 1114 . 847 Core 1460 | . 70 143 146 . . 55 80 61 . 197 210 128 69 49 83 . 169 Absorbed by Shields 252 | . . . . . . . . . . . . . . 8 216 . 28 Ignored by Resistances 198 | . . . . . . . . . . . . 151 . . 32 . 15 Regen/Repaired (Parts) 881 | . 93 . 38 . . . 229 . . . 521 . . . . . . Core Remaining (%) 50 | 100 . 14 . . . 49 . . . 38 . . . . . . . Volleys Fired 888 | 26 57 12 85 2 . 22 77 84 . 99 98 167 76 16 27 . 40 Largest 3 | 2 2 2 3 3 . 3 3 3 . 3 3 3 3 3 3 . 3 Hottest 188 | 40 85 85 159 159 . 159 166 166 . 188 176 135 157 81 84 . 141 Shots Fired 2171 | 40 111 24 243 6 . 66 227 179 . 226 267 368 222 44 75 . 73 Gun 1572 | 40 105 24 98 2 . 26 146 103 . 99 236 316 221 44 72 . 40 Cannon 586 | . 6 . 145 4 . 40 81 76 . 127 27 52 1 . . . 27 Launcher 13 | . . . . . . . . . . . 4 . . . 3 . 6 Special . | . . . . . . . . . . . . . . . . . . Kinetic 1395 | 40 103 12 83 2 . 26 141 51 . 77 236 316 156 44 72 . 36 Thermal 763 | . 8 12 160 4 . 40 86 128 . 149 27 52 66 . . . 31 Explosive 10 | . . . . . . . . . . . 4 . . . . . 6 Electromagnetic 3 | . . . . . . . . . . . . . . . 3 . . Robot Hit Streak 20 | 7 8 3 18 10 . 10 18 18 . 18 10 20 16 6 14 . 6 Robot Miss Streak 12 | 3 3 3 7 2 . 3 5 2 . 9 5 6 7 12 5 . 3 Penetration Max 1 | . . . . . . . . . . . . . 1 . . . . Secondary Targets 21 | . 1 . . . . . . 1 . . 4 5 4 2 4 . . Max Gunslinging Chain 2 | . 1 . . . . . . 1 . . 1 1 1 1 2 . . Shots Hit Robots 1314 | 26 72 10 136 2 . 36 147 91 . 133 170 229 158 22 59 . 23 Core Hits 683 | 6 29 8 61 . . 19 57 39 . 77 97 83 121 10 56 . 20 Critical Kills 4 | . . . 1 . . . 2 . . 1 . . . . . . . Critical Parts Destroyed 3 | . . . 1 . . . . . . . . 1 1 . . . . Critical Strikes 15 | . 1 . 2 . . . 3 5 . 1 1 1 1 . . . . Burn 7 | . 1 . . . . . 1 5 . . . . . . . . . Meltdown 4 | . . . 1 . . . 2 . . 1 . . . . . . . Destroy 3 | . . . 1 . . . . . . . . 1 1 . . . . Sever 1 | . . . . . . . . . . . 1 . . . . . . Melee Attacks 77 | . . . 14 2 . . 7 . . 7 37 7 1 2 . . . Impact 23 | . . . 14 2 . . 7 . . . . . . . . . . Slashing 54 | . . . . . . . . . . 7 37 7 1 2 . . . Piercing . | . . . . . . . . . . . . . . . . . . Sneak Attacks 12 | . . . 2 . . . . . . . 9 . 1 . . . . Combat Hostiles . | . . . . . . . . . . . . . . . . . . Follow-up Attacks . | . . . . . . . . . . . . . . . . . . Damage Inflicted 29851 | 324 1023 145 2880 78 . 745 2794 2084 . 3388 4718 5162 4013 358 1286 . 853 Guns 19045 | 324 949 145 753 . . 249 1521 1428 . 1303 2512 4096 3948 358 1114 . 345 Cannons 7851 | . 66 . 1867 43 . 490 1247 656 . 2085 244 1066 . . . . 87 Explosions 1686 | . . . . . . . . . . . 1093 . . . 172 . 421 Melee 1169 | . . . 235 . . . . . . . 869 . 65 . . . . Ramming 100 | . 8 . 25 35 . 6 26 . . . . . . . . . . Kinetic 16204 | 324 924 56 615 . . 249 1477 623 . 1019 2512 4096 2514 358 1114 . 323 Thermal 10893 | . 91 89 2005 43 . 490 1291 1461 . 2369 445 1066 1434 . . . 109 Explosive 1313 | . . . . . . . . . . . 892 . . . . . 421 Electromagnetic 172 | . . . . . . . . . . . . . . . 172 . . Impact 235 | . . . 235 . . . . . . . . . . . . . . Slashing 934 | . . . . . . . . . . . 869 . 65 . . . . Piercing . | . . . . . . . . . . . . . . . . . . Highest Corruption 16 | . . . . . . . 1 1 1 3 9 9 10 10 12 12 16 Average Corruption 7 | . . . . . . . 1 1 1 2 6 9 9 10 10 12 15 Corruption Purged . | . . . . . . . . . . . . . . . . . . Corruption Blocked . | . . . . . . . . . . . . . . . . . . Effects 339 | . . . . . . . 2 8 . 26 65 96 59 15 21 3 44 Message Errors 66 | . . . . . . . . 3 . 4 12 17 16 3 3 . 8 Matter Fused 70 | . . . . . . . . . . 1 11 24 17 2 4 . 11 Heat Flow Errors 42 | . . . . . . . . . . 8 10 12 5 1 1 1 4 Energy Discharges 46 | . . . . . . . . 1 . 3 8 15 6 2 3 1 7 Parts Rejected 3 | . . . . . . . . 1 . . 1 1 . . . . . Parts Fused 5 | . . . . . . . . . . . . 1 1 1 1 . 1 Data Loss (minor) 33 | . . . . . . . 2 . . 3 7 12 3 . 2 . 4 Data Loss (major) 19 | . . . . . . . . 1 . 2 4 5 3 1 1 1 1 Misfires 17 | . . . . . . . . 1 . 2 2 1 2 4 2 . 3 Alerts 9 | . . . . . . . . . . . 3 1 . 1 2 . 2 Weapon Failures 29 | . . . . . . . . 1 . 3 7 7 6 . 2 . 3 Overload Shots . | . . . . . . . . . . . . . . . . . . Overflow Damage 318 | . . . 141 . . . 7 . . 18 152 . . . . . . Projectiles 28 | . . . 3 . . . 7 . . 18 . . . . . . . Explosions 106 | . . . . . . . . . . . 106 . . . . . . Melee 184 | . . . 138 . . . . . . . 46 . . . . . . Knockbacks 2 | . 1 . 1 . . . . . . . . . . . . . . Impact 1 | . . . 1 . . . . . . . . . . . . . . Kinetic . | . . . . . . . . . . . . . . . . . . Secondary 1 | . 1 . . . . . . . . . . . . . . . . Self-Inflicted Damage 141 | . . . . . . . . . . . 117 . . . 24 . . Shots 6 | . . . . . . . . . . . 3 . . . 3 . . Rammed 10 | . . . 5 1 . 2 2 . . . . . . . . . . Targets Rammed 15 | . 4 . 5 2 . 2 2 . . . . . . . . . . Kicked 4 | . 4 . . . . . . . . . . . . . . . . Crushed 1 | . . . . 1 . . . . . . . . . . . . . Highest Temperature 365 | . 132 119 326 145 . 190 197 360 . 281 362 299 315 204 164 137 365 Average Temperature 81 | . 28 41 96 75 . 81 40 101 . 71 98 79 64 75 79 102 130 Received Heat Transfer 4902 | . 267 40 309 . . 72 720 495 . 459 747 711 654 32 227 . 169 Effects 7 | . . . . . . . . 1 . . 4 1 . . . . 1 Energy Bleed 3 | . . . . . . . . 1 . . 1 . . . . . 1 Interference 4 | . . . . . . . . . . . 3 1 . . . . . Siege Activations . | . . . . . . . . . . . . . . . . . . Martial Activations . | . . . . . . . . . . . . . . . . . . Shielding Activations . | . . . . . . . . . . . . . . . . . . Robots Disrupted . | . . . . . . . . . . . . . . . . . . Combat Hostiles . | . . . . . . . . . . . . . . . . . . Robots Corrupted 1 | . . . 1 . . . . . . . . . . . . . . Combat Hostiles . | . . . . . . . . . . . . . . . . . . Parts Fried 4 | . . . 2 . . . . . . . . . . . 2 . . Impact Corruptions 5 | . . . 5 . . . . . . . . . . . . . . Robots Melted 4 | . . . 1 . . . 2 . . 1 . . . . . . . Combat Hostiles 4 | . . . 1 . . . 2 . . 1 . . . . . . . Parts Melted 29 | . . . 7 . . . 6 5 . 9 1 1 . . . . . Heat Transferred 16644 | . 296 222 3601 74 . 851 2257 2606 . 3145 470 1295 1666 . . . 161 Parts Sabotaged . | . . . . . . . . . . . . . . . . . . Parts Stolen 1 | . . . . . . . . . . . . . . 1 . . . Parts Stripped . | . . . . . . . . . . . . . . . . . . Power Chain Reactions . | . . . . . . . . . . . . . . . . . . Alert | -11 -10 -10 -9 -9 -9 -8 -8 -8 -8 -8 -7 -7 -7 -7 -7 -7 -6 ------- Run | Yrd Mat Min Mat Min Exi Min Mat Gar Sto Gar Fac Gar Fac Low Low Dat Pro Maximum Alert Level 5 | . . . 3 1 . . 1 3 2 4 3 5 4 . . . . Low Security (%) 36 | 100 100 100 25 81 . 100 70 5 . . . . . . . . . Level 1 9 | . . . 14 18 . . 29 24 . 8 . . . . . . . Level 2 17 | . . . 50 . . . . 34 100 20 45 2 . . . . . Level 3 22 | . . . 10 . . . . 35 . 35 54 39 40 . . . . Level 4 9 | . . . . . . . . . . 34 . 12 59 . . . . Level 5 5 | . . . . . . . . . . . . 45 . . . . . High Security . | . . . . . . . . . . . . . . . . . . Max Security . | . . . . . . . . . . . . . . . . . . Peak Influence 2224 | 10 100 20 814 313 . 109 271 1049 510 1515 952 2224 1468 . . . . Initial 1167 | . . 17 2 313 . . 12 161 510 331 795 574 1167 . . . . Average 556 | 1 15 1 415 72 . 44 110 600 510 912 730 1415 1184 . . . . Influence Increases 9617 | 25 414 45 1304 93 . 340 863 978 . 1264 1072 1690 887 70 290 . 282 Destroy 0b10 Robot/C 5520 | . 200 40 780 60 . 280 520 500 . 660 640 760 540 60 260 . 220 Destroy 0b10 Robot/NC 375 | 25 45 5 75 5 . 5 30 . . 10 100 20 55 . . . . Destroy Leader 886 | . 50 . 208 10 . 40 128 20 . 40 152 50 138 10 30 . 10 Allied During Kill 75 | . . . . 16 . . . 1 . . 21 . . . . . 37 Successful Hack 181 | . 12 . 25 . . . 33 37 . 14 4 14 42 . . . . Select Force Hacks 150 | . 60 . 60 . . . 30 . . . . . . . . . . Disable Machine 255 | . 30 . 30 . . . 15 30 . 15 75 15 45 . . . . Anti-Garrison Action 1400 | . . . . . . . . 300 . 400 . 700 . . . . . Destroy Structure 295 | . 2 . 21 2 . . 17 90 . 35 80 26 22 . . . . Partial Spotted 30 | . . . 15 . . . . . . . . . 15 . . . . Lose Combat Pursuer 450 | . 15 . 90 . . 15 90 . . 90 . 105 30 . . . 15 Influence Decreases 9617 | 25 369 82 507 880 18 307 647 178 539 259 1766 287 1653 786 382 650 282 Entered New Map 4727 | . . 28 6 492 18 . 21 88 539 179 720 247 1057 540 142 650 . Time Decay 3997 | 25 349 54 501 245 . 307 576 . . . 666 . 556 246 230 . 242 Lost Part 480 | . 20 . . . . . 50 70 . 80 150 40 40 . 10 . 20 Lost Ally 120 | . . . . . . . . 20 . . 80 . . . . . 20 Purge Threat 293 | . . . . 143 . . . . . . 150 . . . . . . Squads Dispatched 41 | . 3 . 7 . . . 5 . . . 16 . 10 . . . . Investigation 9 | . 3 . 2 . . . 2 . . . 2 . . . . . . Extermination 9 | . . . . . . . . . . . 6 . 3 . . . . Reinforcement 13 | . . . 3 . . . 3 . . . 4 . 3 . . . . Assault 6 | . . . 2 . . . . . . . 3 . 1 . . . . Garrison 4 | . . . . . . . . . . . 1 . 3 . . . . Intercept . | . . . . . . . . . . . . . . . . . . Searches Triggered . | . . . . . . . . . . . . . . . . . . Construction Impeded 3 | . . . 1 . . . . . . . 1 . 1 . . . . Haulers Reinforced 2 | . . . . . . . . . . . 1 . 1 . . . . Active Scanning Responses . | . . . . . . . . . . . . . . . . . . Cargo Convoy Interrupts 1 | . . . . . . . . . . . 1 . . . . . . Stealth | -11 -10 -10 -9 -9 -9 -8 -8 -8 -8 -8 -7 -7 -7 -7 -7 -7 -6 --------- Run | Yrd Mat Min Mat Min Exi Min Mat Gar Sto Gar Fac Gar Fac Low Low Dat Pro Distress Signals 11 | . . . 4 . . . 3 . . . 1 . 3 . . . . Communications Jammed . | . . . . . . . . . . . . . . . . . . Distress Signals . | . . . . . . . . . . . . . . . . . . Times Spotted 358 | . 20 4 59 5 . 15 42 25 . 34 40 39 41 8 15 . 11 Peak Tracking Total 7 | . 6 1 7 1 . 4 6 5 . 6 5 7 5 4 7 . 4 Tactical Retreats 18 | . 1 . 3 . . 1 3 . . 3 . 4 2 . . . 1 Traps | -11 -10 -10 -9 -9 -9 -8 -8 -8 -8 -8 -7 -7 -7 -7 -7 -7 -6 ------- Run | Yrd Mat Min Mat Min Exi Min Mat Gar Sto Gar Fac Gar Fac Low Low Dat Pro Traps Triggered 9 | . 2 . . . . . 1 2 . 3 1 . . . . . . Indirectly . | . . . . . . . . . . . . . . . . . . Trap Hack Attempts . | . . . . . . . . . . . . . . . . . . Triggered . | . . . . . . . . . . . . . . . . . . Disarmed . | . . . . . . . . . . . . . . . . . . Reprogrammed . | . . . . . . . . . . . . . . . . . . Reused . | . . . . . . . . . . . . . . . . . . Traps Extracted . | . . . . . . . . . . . . . . . . . . Installed . | . . . . . . . . . . . . . . . . . . Triggered . | . . . . . . . . . . . . . . . . . . Machines | -11 -10 -10 -9 -9 -9 -8 -8 -8 -8 -8 -7 -7 -7 -7 -7 -7 -6 ---------- Run | Yrd Mat Min Mat Min Exi Min Mat Gar Sto Gar Fac Gar Fac Low Low Dat Pro Machines Disabled 34 | . 2 . 2 . . . 1 6 . 7 5 7 3 1 . . . Max in Single Turn 2 | . 1 . 1 . . . 1 1 . 1 2 1 1 1 . . . Garrison Relay 14 | . . . . . . . . 4 . 5 . 5 . . . . . Phase Generator 2 | . . . . . . . . . . 1 . 1 . . . . . Machines Repaired . | . . . . . . . . . . . . . . . . . . Machines Dismantled 2 | . . . . . . . . . . 1 . 1 . . . . . Machines Sabotaged . | . . . . . . . . . . . . . . . . . . Overloaded Fab Kills . | . . . . . . . . . . . . . . . . . . Hacking | -11 -10 -10 -9 -9 -9 -8 -8 -8 -8 -8 -7 -7 -7 -7 -7 -7 -6 --------- Run | Yrd Mat Min Mat Min Exi Min Mat Gar Sto Gar Fac Gar Fac Low Low Dat Pro Machines Accessed 79 | . 11 1 15 1 1 . 12 4 1 2 13 2 11 . . 4 1 Terminals 51 | . 8 . 10 1 . . 8 4 . 2 7 2 8 . . . 1 Fabricators 2 | . . . . . . . . . . . 1 . 1 . . . . Repair Stations 5 | . 1 . 1 . . . 1 . . . 2 . . . . . . Recycling Units 7 | . 2 . 2 . . . 1 . . . 2 . . . . . . Scanalyzers 5 | . . . 2 . . . 1 . . . . . 2 . . . . Garrison Access 3 | . . . . . . . 1 . 1 . 1 . . . . . . Total Hacks 196 | . 24 1 33 4 4 . 34 8 3 3 33 3 21 . . 24 1 Successful 104 | . 9 1 20 1 4 . 19 4 1 1 12 1 6 . . 24 1 Failed 90 | . 15 . 12 3 . . 14 4 2 2 21 2 15 . . . . Catastrophic 17 | . . . 3 1 . . 1 3 . 1 2 1 5 . . . . Database Lockouts 2 | . . . 1 . . . 1 . . . . . . . . . . Manual 87 | . 19 . 19 4 . . 17 2 1 . 18 1 6 . . . . Terminals 121 | . 19 . 26 4 . . 23 8 . 3 18 3 16 . . . 1 Fabricators 3 | . . . . . . . . . . . 2 . 1 . . . . Repair Stations 17 | . 3 . 2 . . . 5 . . . 7 . . . . . . Recycling Units 8 | . 2 . 2 . . . 1 . . . 3 . . . . . . Scanalyzers 10 | . . . 3 . . . 3 . . . . . 4 . . . . Garrison Access 8 | . . . . . . . 2 . 3 . 3 . . . . . . Terminal Hacks 58 | . 3 1 8 1 4 . 3 4 . 1 3 1 4 . . 24 1 Record 8 | . . . . . 4 . . . . . . . . . . 3 1 Part Schematic 12 | . 1 . . . . . . . . . . . . . . 11 . Robot Schematic 7 | . . . . . . . . . . . . . . . . 7 . Robot Analysis 5 | . 1 . 3 . . . . . . . . . 1 . . . . Prototype ID Bank 5 | . . . 2 . . . . . . . . . . . . 3 . Open Door 2 | . . 1 . . . . . 1 . . . . . . . . . Open DSF 1 | . . . . . . . . . . . 1 . . . . . . Branch Access Points 1 | . . . . . . . . . . . . . 1 . . . . Emergency Access Points 1 | . . . . . . . . 1 . . . . . . . . . Alert Level 1 | . . . . . . . 1 . . . . . . . . . . Unreport Threat 2 | . . . . 1 . . . . . . 1 . . . . . . Locate Traps 6 | . . . 2 . . . 1 . . . 1 . 2 . . . . Hauler Manifests 2 | . 1 . 1 . . . . . . . . . . . . . . Registered Components 1 | . . . . . . . 1 . . . . . . . . . . Garrison Registry 1 | . . . . . . . . . . 1 . . . . . . . Patrol Navigation 2 | . . . . . . . . 1 . . . 1 . . . . . Security Stations 1 | . . . . . . . . 1 . . . . . . . . . Fabricator Hacks 1 | . . . . . . . . . . . 1 . . . . . . Network Status 1 | . . . . . . . . . . . 1 . . . . . . Repair Station Hacks 14 | . 3 . 2 . . . 5 . . . 4 . . . . . . Scan Component 8 | . 2 . 1 . . . 3 . . . 2 . . . . . . Repair 6 | . 1 . 1 . . . 2 . . . 2 . . . . . . Recycling Unit Hacks 1 | . . . . . . . . . . . 1 . . . . . . Retrieve Components 1 | . . . . . . . . . . . 1 . . . . . . Scanalyzer 3 | . . . . . . . 2 . . . . . 1 . . . . Retrieve Study 3 | . . . . . . . 2 . . . . . 1 . . . . Garrison Access Hacks 3 | . . . . . . . 1 . 1 . 1 . . . . . . Unlock Access 3 | . . . . . . . 1 . 1 . 1 . . . . . . Unauthorized Hacks 24 | . 3 . 10 . . . 8 . . . 2 . 1 . . . . Terminals 18 | . 1 . 8 . . . 7 . . . 1 . 1 . . . . Botnet 8 | . 1 . 3 . . . 2 . . . 1 . 1 . . . . Skim 10 | . . . 5 . . . 5 . . . . . . . . . . Fabricators 1 | . . . . . . . . . . . 1 . . . . . . Liberate 1 | . . . . . . . . . . . 1 . . . . . . Repair Stations . | . . . . . . . . . . . . . . . . . . Recycling Units 5 | . 2 . 2 . . . 1 . . . . . . . . . . Tunnel 5 | . 2 . 2 . . . 1 . . . . . . . . . . Scanalyzers . | . . . . . . . . . . . . . . . . . . Garrison Access . | . . . . . . . . . . . . . . . . . . Data Cores Recovered 3 | . . . . . . . 1 . . . 1 . 1 . . . . Used 2 | . . . . . . . 1 . . . 1 . . . . . . Hacking Detections 63 | . 9 . 12 1 . . 11 3 1 1 12 2 11 . . . . Full Trace Events 3 | . 1 . . . . . 1 . . . 1 . . . . . . Feedback Events . | . . . . . . . . . . . . . . . . . . Feedback Blocked . | . . . . . . . . . . . . . . . . . . Robot Schematics Acquired 7 | . . . . . . . . . . . . . . . . 7 . Robots Built . | . . . . . . . . . . . . . . . . . . Authchips . | . . . . . . . . . . . . . . . . . . Time . | . . . . . . . . . . . . . . . . . . Total Robot Build Rating . | . . . . . . . . . . . . . . . . . . Part Schematics Acquired 12 | . 1 . . . . . . . . . . . . . . 11 . Parts Built . | . . . . . . . . . . . . . . . . . . Authchips . | . . . . . . . . . . . . . . . . . . Time . | . . . . . . . . . . . . . . . . . . Total Part Build Rating . | . . . . . . . . . . . . . . . . . . Part Studies Acquired 3 | . . . . . . . 2 . . . . . 1 . . . . Parts Repaired 6 | . 1 . 1 . . . 2 . . . 2 . . . . . . Time 270 | . 26 . 38 . . . 102 . . . 104 . . . . . . Parts Recycled . | . . . . . . . . . . . . . . . . . . Recycled Matter . | . . . . . . . . . . . . . . . . . . Retrieved Matter . | . . . . . . . . . . . . . . . . . . Retrieved Components 5 | . . . . . . . . . . . 5 . . . . . . Parts Scanalyzed . | . . . . . . . . . . . . . . . . . . Part Schematics Acquired . | . . . . . . . . . . . . . . . . . . Parts Damaged . | . . . . . . . . . . . . . . . . . . Bothacking | -11 -10 -10 -9 -9 -9 -8 -8 -8 -8 -8 -7 -7 -7 -7 -7 -7 -6 ------------ Run | Yrd Mat Min Mat Min Exi Min Mat Gar Sto Gar Fac Gar Fac Low Low Dat Pro Used RIF Installer . | . . . . . . . . . . . . . . . . . . Robots Hacked . | . . . . . . . . . . . . . . . . . . Non-combat . | . . . . . . . . . . . . . . . . . . Combat . | . . . . . . . . . . . . . . . . . . Robot Hacks Applied . | . . . . . . . . . . . . . . . . . . Relay Couplers Released 53 | . . . . . . . . 16 . 21 . 16 . . . . . Machine Destruction 53 | . . . . . . . . 16 . 21 . 16 . . . . . Fabnet Peak Effective % . | . . . . . . . . . . . . . . . . . . Robots Rewired . | . . . . . . . . . . . . . . . . . . Allies Hacked . | . . . . . . . . . . . . . . . . . . Hacks Repelled . | . . . . . . . . . . . . . . . . . . Allies | -11 -10 -10 -9 -9 -9 -8 -8 -8 -8 -8 -7 -7 -7 -7 -7 -7 -6 -------- Run | Yrd Mat Min Mat Min Exi Min Mat Gar Sto Gar Fac Gar Fac Low Low Dat Pro Total Allies 11 | . . . . 4 . . . 1 . . 5 . . . . . 1 Largest Group 5 | . . . . 4 4 3 . 1 . . 5 . . . . . 1 Highest-Rated Group 108 | . . . . 71 71 40 . 20 . . 108 . . . . . 96 Highest-Rated Ally 96 | . . . . 31 31 16 . 20 . . 32 . . . . . 96 Initial Warlord ECA Mod 25 | . . . . . . . . . 8 8 15 15 25 25 25 25 24 Total Orders . | . . . . . . . . . . . . . . . . . . Ally Attacks 62 | . . . . 9 . 6 . 5 . . 28 . . . . . 14 Total Damage 1523 | . . . . 115 . 41 . 212 . . 627 . . . . . 528 Kills 14 | . . . . 3 . . . 1 . . 5 . . . . . 5 Allies Corrupted . | . . . . . . . . . . . . . . . . . . Allies Melted 1 | . . . . . . . . 1 . . . . . . . . . Intel | -11 -10 -10 -9 -9 -9 -8 -8 -8 -8 -8 -7 -7 -7 -7 -7 -7 -6 ------- Run | Yrd Mat Min Mat Min Exi Min Mat Gar Sto Gar Fac Gar Fac Low Low Dat Pro Active Infowar (turns) 11272 | 41 693 796 1720 1270 477 567 1716 211 . 255 1367 2 207 471 361 82 1036 Sensors 293 | . . . . 1 . . . . . . 85 . 207 . . . . Structural 820 | . . . . . . . . . . . . 2 . 90 25 . 703 Seismic 10045 | 41 693 796 1720 1269 477 567 1716 211 . 255 473 . . 381 336 82 1028 Machine Analysis 894 | . . . . . . . . . . . 894 . . . . . . Robot Analysis Total 5 | . 1 . 3 . . . . . . . . . 1 . . . . Derelict Logs Recovered 8 | . . 2 . 2 . . . . . . . . . 2 . . 2 Drone Launches . | . . . . . . . . . . . . . . . . . . Drone Recoveries . | . . . . . . . . . . . . . . . . . . Exploration | -11 -10 -10 -9 -9 -9 -8 -8 -8 -8 -8 -7 -7 -7 -7 -7 -7 -6 ------------- Run | Yrd Mat Min Mat Min Exi Min Mat Gar Sto Gar Fac Gar Fac Low Low Dat Pro Turns Passed 22373 | 167 1822 929 2643 1291 477 952 2307 1494 18 1589 2549 2328 1639 539 486 82 1061 Spaces Moved 11563 | 75 941 451 1305 783 299 540 1057 760 11 628 1186 944 1134 461 324 91 573 Core 6 | 6 . . . . . . . . . . . . . . . . . Treads 5173 | . . . 1305 783 299 540 1057 760 11 193 . 167 54 . . . 4 Legs 3531 | 69 941 451 . . . . . . . 435 858 777 . . . . . Wheels 2853 | . . . . . . . . . . . 328 . 1080 461 324 91 569 Hover . | . . . . . . . . . . . . . . . . . . Flight . | . . . . . . . . . . . . . . . . . . Fastest Speed 50 | 50 120 120 160 160 160 160 156 156 160 160 110 162 101 101 101 86 101 Average Speed 153 | 114 167 189 160 160 160 160 159 160 160 191 160 185 106 101 101 86 121 Slowest Speed 540 | 120 260 190 160 160 160 160 240 240 160 540 192 190 162 101 101 101 410 Overloaded Moves . | . . . . . . . . . . . . . . . . . . Propulsion Burnouts . | . . . . . . . . . . . . . . . . . . Robots Hopped . | . . . . . . . . . . . . . . . . . . Potential Cave-ins . | . . . . . . . . . . . . . . . . . . Cave-ins Triggered . | . . . . . . . . . . . . . . . . . . Exploration Rate (%) 62 | 4 98 63 92 99 69 91 71 97 5 57 22 85 32 46 51 72 75 Regions Visited 17 Branch Regions 9 Pre-discovered Areas 18 | . 2 1 3 3 1 . 5 . . . . . . 2 . 1 . Known Exits Taken 6 | . . . . . . 1 1 . 1 . 1 . 1 1 . . . Unknown Exits Taken 8 | 1 1 1 1 1 1 . . . . . . . . . 1 1 . Scrap Searched 10 | . . 2 . 2 . 1 . . . . . . . 2 . . 3 Spaces Dug 43 | . . . 10 2 . . 9 . . . 12 . 1 2 . . 7 Terrain Destroyed 205 | . . . 10 2 . . 10 . . . 76 16 26 2 1 . 62 Melee 32 | . . . 10 2 . . 7 . . . 11 . . 2 . . . Projectile 75 | . . . . . . . 3 . . . 6 15 26 . 1 . 24 AOE 97 | . . . . . . . . . . . 59 . . . . . 38 Terrain Rammed . | . . . . . . . . . . . . . . . . . . Walls Destroyed . | . . . . . . . . . . . . . . . . . . Machines Disabled . | . . . . . . . . . . . . . . . . . . Actions | -11 -10 -10 -9 -9 -9 -8 -8 -8 -8 -8 -7 -7 -7 -7 -7 -7 -6 --------- Run | Yrd Mat Min Mat Min Exi Min Mat Gar Sto Gar Fac Gar Fac Low Low Dat Pro Total 14392 | 112 1073 500 1638 811 298 575 1486 888 11 802 1638 1276 1390 502 417 96 879 Wait 1131 | . 38 34 102 9 . 3 253 14 . 13 185 65 126 . 46 . 243 Move 11545 | 74 940 450 1304 782 298 539 1056 759 11 627 1185 941 1133 460 323 90 573 Hop . | . . . . . . . . . . . . . . . . . . Pick Up 122 | 5 10 1 26 2 . 1 12 5 . 3 27 13 9 2 1 . 5 Fast Attach 66 | 7 3 1 5 2 . . 7 3 . 5 18 8 4 3 . . . Attach 65 | . 1 . 4 . . . 8 5 . 6 17 8 5 1 3 3 4 Detach 16 | . . . . . . . 2 . . 1 6 3 1 . . 3 . Swap 281 | . 10 1 58 6 . 7 44 14 . 18 27 28 24 14 16 . 14 Drop 153 | . 10 1 35 4 . 1 18 4 . 4 33 27 11 4 1 . . Fire 888 | 26 57 12 85 2 . 22 77 84 . 99 98 167 76 16 27 . 40 Melee 77 | . . . 14 2 . . 7 . . 7 37 7 1 2 . . . Ram . | . . . . . . . . . . . . . . . . . . Kick 4 | . 4 . . . . . . . . . . . . . . . . Crush 11 | . . . 5 2 . 2 2 . . . . . . . . . . Escape Stasis 15 | . . . . . . . . . . 10 5 . . . . . . Rewire . | . . . . . . . . . . . . . . . . . . Trap . | . . . . . . . . . . . . . . . . . . Miscellaneous 18 | . . . . . . . . . . 9 . 9 . . . . . Route ------- -11/Scrapyard -10/Materials (discovered 5 exits: *Mat x3 / *Min x2) -10/Mines -9/Materials (discovered 4 exits: *Mat x3 / *Min) -9/Mines (discovered 3 exits: *Mat x2 / *Exi) -9/Exiles (discovered 2 exits: [*Min x2]) -8/Mines -8/Materials (discovered 5 exits: *Fac x3 / *Sto / Gar) -8/Garrison (discovered 3 exits: *Sto x3) -8/Storage (discovered 2 exits: Fac / Gar) -8/Garrison (discovered 3 exits: *Fac x3) -7/Factory (discovered 2 exits: *Low / Gar) -7/Garrison (discovered 3 exits: *Fac x3) -7/Factory (discovered 3 exits: *Fac / *Low x2) -7/Lower Caves -7/Lower Caves (discovered 2 exits: *Fac / *Dat) -7/Data Miner -6/Proximity Caves (discovered 1 exit: *Fac) History --------- Turn | Location | Event 9 | -11/Scrapyard | Discovered new exit (range 15) 168 | -11/Scrapyard | Entered Materials 236 | -10/Materials | Discovered new exit (range 8) 307 | -10/Materials | Discovered new exit (range 11) 314 | -10/Materials | Build established: Mutant 424 | -10/Materials | Discovered new exit (range 8) 623 | -10/Materials | Discovered new exit (range 9) 891 | -10/Materials | Discovered new exit (range 14) 1027 | -10/Materials | Repaired Assault Rifle 1142 | -10/Materials | Build established: Scavenger-Mutant 1990 | -10/Materials | Entered Mines 2104 | -10/Mines | Discovered new exit (range 10) 2337 | -10/Mines | Learned location of Storage (-8) 2460 | -10/Mines | Learned 2 Materials zone layouts 2483 | -10/Mines | Assembled infested the area 2525 | -10/Mines | Found the Drone Emporium 2530 | -10/Mines | Learned Materials emergency access door positions 2793 | -10/Mines | Core integrity fell below 50% 2804 | -10/Mines | Core integrity fell below 20% 2919 | -10/Mines | Entered Materials 2919 | -9/Materials | Evolved 2 slots: Propulsion x1, Weapon x1 3309 | -9/Materials | Build established: Scavenger-Gunner 4038 | -9/Materials | Discovered new exit (range 6) 4120 | -9/Materials | Identified exit to Materials 4307 | -9/Materials | Learned 4 Recycling zone layouts 4344 | -9/Materials | Build established: Scavenger-Mutant 4412 | -9/Materials | Learned Materials emergency access door positions 4457 | -9/Materials | Learned Storage stockpile data 4511 | -9/Materials | Loaded intel: 12 terminal locations 4735 | -9/Materials | Build established: Scavenger-Gunner 4919 | -9/Materials | First assault squad dispatched 5240 | -9/Materials | Central database locked down 5414 | -9/Materials | Repaired Imp. Heat Sink 5562 | -9/Materials | Entered Mines 5582 | -9/Mines | Learned location of Zion (-6) 5674 | -9/Mines | Deemed a non-threat by the Exiles lab entrance 5676 | -9/Mines | Discovered new exit (range 5) 5830 | -9/Mines | Found a damaged Exp. Sensor Array with a note attached 5834 | -9/Mines | Found Prototype Device 5834 | -9/Mines | Identified Exp. Sensor Array 5861 | -9/Mines | Build established: Gunner 5903 | -9/Mines | Discovered exit to Materials (range 10) 6223 | -9/Mines | Assisted by bots powering up and referring to "LRC-V3" 6572 | -9/Mines | Discovered exit to Materials (range 15) 6600 | -9/Mines | Escorted by a lone wolf Derelict 6853 | -9/Mines | Entered Exiles 6853 | -9/Exiles | Accompanied by 4 allies 6877 | -9/Exiles | Discovered new exit (range 14) 6898 | -9/Exiles | Met 8R-AWN 6917 | -9/Exiles | Met EX-HEX 7012 | -9/Exiles | Met EX-DEC 7116 | -9/Exiles | Met EX-BIN 7306 | -9/Exiles | Discovered new exit (range 12) 7330 | -9/Exiles | Entered Mines 7330 | -8/Mines | Accompanied by 3 allies 7528 | -8/Mines | Lost 3 allies 7636 | -8/Mines | Discovered exit to Materials (range 10) 8063 | -8/Mines | Core integrity fell below 50% 8282 | -8/Mines | Entered Materials 8282 | -8/Materials | Evolved 2 slots: Propulsion x1, Utility x1 8283 | -8/Materials | Identified exit to Storage 8562 | -8/Materials | Central database locked down 8584 | -8/Materials | Build established: Scavenger-Tank 8650 | -8/Materials | Discovered new exit (range 10) 9050 | -8/Materials | Discovered new exit (range 14) 9514 | -8/Materials | Learned Factory terminal intel 9559 | -8/Materials | Learned 2 Lower Caves zone layouts 9593 | -8/Materials | Learned Storage stockpile data 9619 | -8/Materials | Learned Storage stockpile data 9644 | -8/Materials | Learned location of Lower Caves (-6) 9670 | -8/Materials | Learned location of Lower Caves (-7) 9699 | -8/Materials | Identified exit to Factory 9713 | -8/Materials | Repaired Adv. Beam Cannon? 9740 | -8/Materials | Learned location of 1 exit from Storage 9778 | -8/Materials | Repaired Adv. Beam Cannon 10027 | -8/Materials | Build established: Tank 10497 | -8/Materials | Build established: Scavenger-Tank 10576 | -8/Materials | Identified exit to Garrison 10589 | -8/Materials | Entered Garrison 10641 | -8/Garrison | Triggered checkpoint 10682 | -8/Garrison | Garrison Relay disabled 11015 | -8/Garrison | Triggered checkpoint 11073 | -8/Garrison | Lost 3 parts (2n1u) 11090 | -8/Garrison | Destroyed 8 combat bots 11188 | -8/Garrison | Garrison Relay disabled 11275 | -8/Garrison | Rescued a captive Derelict 11315 | -8/Garrison | Triggered checkpoint 11511 | -8/Garrison | Discovered exit to Storage (range 10) 11549 | -8/Garrison | Garrison Relay disabled 11577 | -8/Garrison | Triggered checkpoint 11738 | -8/Garrison | Triggered checkpoint 11866 | -8/Garrison | Discovered exit to Storage (range 15) 11970 | -8/Garrison | Triggered checkpoint 12023 | -8/Garrison | Garrison Relay disabled 12075 | -8/Garrison | Learned Storage security intel 12083 | -8/Garrison | Entered Storage 12101 | -8/Storage | Identified exit to Garrison 12101 | -8/Storage | Entered Garrison 12199 | -8/Garrison | Triggered checkpoint 12282 | -8/Garrison | Garrison Relay disabled 12419 | -8/Garrison | Triggered checkpoint 12495 | -8/Garrison | Triggered checkpoint 12519 | -8/Garrison | Lost 3 parts (2n1w) 12554 | -8/Garrison | Core integrity fell below 50% 12719 | -8/Garrison | Build established: Scavenger-Gunner 12798 | -8/Garrison | Garrison Relay disabled 12915 | -8/Garrison | Triggered checkpoint 12988 | -8/Garrison | Discovered exit to Factory (range 15) 13134 | -8/Garrison | Phase Generator disabled 13186 | -8/Garrison | Garrison Relay disabled 13325 | -8/Garrison | Triggered checkpoint 13363 | -8/Garrison | Garrison Relay disabled 13445 | -8/Garrison | Discovered exit to Factory (range 11) 13495 | -8/Garrison | Triggered checkpoint 13599 | -8/Garrison | Triggered checkpoint 13605 | -8/Garrison | Garrison Relay disabled 13629 | -8/Garrison | Discovered exit to Factory (range 12) 13629 | -8/Garrison | Discovered exit to Factory (range 88) 13629 | -8/Garrison | Discovered exit to Factory (range 76) 13690 | -8/Garrison | Entered Factory 13690 | -7/Factory | Evolved 2 slots: Propulsion x1, Utility x1 13691 | -7/Factory | Identified exit to Lower Caves 13692 | -7/Factory | Loaded intel: 26 terminal locations 13748 | -7/Factory | Identified exit to DSF 14090 | -7/Factory | First assault squad dispatched 14206 | -7/Factory | Lost 3 parts (1p1u1w) 14567 | -7/Factory | Repaired Hrd. Heavy Armor Plating 14759 | -7/Factory | Cargo convoy interrupted 14790 | -7/Factory | Lost 3 parts (3n) 15021 | -7/Factory | Build established: Scavenger-Mutant 15186 | -7/Factory | Lost 3 parts (1p2u) 15226 | -7/Factory | Destroyed 8 combat bots 15275 | -7/Factory | Identified exit to Garrison 15329 | -7/Factory | Build established: Scavenger-Tank 15557 | -7/Factory | Repaired Enh. Autogun 15584 | -7/Factory | Garrison activated, responded to threat 16239 | -7/Factory | Entered Garrison 16362 | -7/Garrison | Triggered checkpoint 16455 | -7/Garrison | Garrison Relay disabled 16685 | -7/Garrison | Triggered checkpoint 16792 | -7/Garrison | Garrison Relay disabled 16805 | -7/Garrison | Triggered checkpoint 16949 | -7/Garrison | Phase Generator disabled 17114 | -7/Garrison | Discovered new exit (range 14) 17279 | -7/Garrison | Triggered checkpoint 17280 | -7/Garrison | Triggered checkpoint 17410 | -7/Garrison | Discovered new exit (range 8) 17425 | -7/Garrison | Triggered checkpoint 17475 | -7/Garrison | Garrison Relay disabled 17501 | -7/Garrison | Triggered checkpoint 17510 | -7/Garrison | Garrison Relay disabled 17913 | -7/Garrison | Lost 3 parts (1p2u) 18009 | -7/Garrison | Triggered checkpoint 18080 | -7/Garrison | Garrison Relay disabled 18194 | -7/Garrison | Discovered new exit (range 15) 18271 | -7/Garrison | Attempted to access garrison exit controls, blocked by remote lockdown 18343 | -7/Garrison | Triggered checkpoint 18567 | -7/Garrison | Entered Factory 18974 | -7/Factory | Build established: Tank 19270 | -7/Factory | Discovered new exit (range 15) 19367 | -7/Factory | First assault squad dispatched 19416 | -7/Factory | Identified exit to Factory 19520 | -7/Factory | Core integrity fell below 50% 19878 | -7/Factory | Garrison activated, responded to threat 19921 | -7/Factory | System corruption reached 10% 20206 | -7/Factory | Entered Lower Caves 20219 | -7/Lower Caves | Met a Warlord Commander 20219 | -7/Lower Caves | Found DCF Scrap (13 items) 20220 | -7/Lower Caves | Learned location of Warlord (-5) 20221 | -7/Lower Caves | Warlord Commander delivered Encrypted Comm Array 20406 | -7/Lower Caves | Found Alien Artifact 20406 | -7/Lower Caves | Identified Core Expander 20406 | -7/Lower Caves | Installed Core Expander, added new Propulsion slot 20515 | -7/Lower Caves | Encountered a Warlord checkpoint 20536 | -7/Lower Caves | Identified exit to Lower Caves 20672 | -7/Lower Caves | Attacked by a delusional Derelict stockpiling parts 20745 | -7/Lower Caves | Entered another Lower Caves area 20766 | -7/Lower Caves | Discovered exit to Factory (range 13) 21068 | -7/Lower Caves | Ambushed by research squad 21135 | -7/Lower Caves | Destroyed 7 combat bots 21176 | -7/Lower Caves | Discovered new exit (range 15) 21231 | -7/Lower Caves | Entered Data Miner 21233 | -7/Data Miner | Discovered new exit (range 6) 21249 | -7/Data Miner | Met Data Miner 21266 | -7/Data Miner | Learned location of Section 7 (-2) 21280 | -7/Data Miner | Received God Mode back door access code from Data Miner 21313 | -7/Data Miner | Entered Proximity Caves 21565 | -6/Proximity Caves | Core integrity fell below 20% 21598 | -6/Proximity Caves | Lost 3 parts (2n1u) 21614 | -6/Proximity Caves | Spotted B-75 Beast 21616 | -6/Proximity Caves | Escorted by Enhanced Grunt 21934 | -6/Proximity Caves | Build established: Scavenger-Tank 22151 | -6/Proximity Caves | Found Prototype Device 22340 | -6/Proximity Caves | Learned 4 Factory zone layouts 22348 | -6/Proximity Caves | Identified Exp. Thermal Shield 22374 | -6/Proximity Caves | Destroyed by H-66 Slayer with Gauss Rifle Last Messages --------------- 22334_ Arm. Huge Wheel+ destroyed. 22338_ Penetrated by Slug. 22338_ Slug penetrates Wall. 22340_ Acquired derelict log, extracted data. Data stored: Factory zone layouts (x4). 22348_ System corrupted: Heat flow error (+198). 22348_ Identified Exp. Thermal Shield. 22349_ Identified Adv. Particle Charger. 22352_ Slug penetrates Wall. 22358_ Penetrated by Slug. 22360_ Slug penetrates Wall. 22361_ Penetrated by Slug. 22361_ Phase Cannon destroyed. 22361_ Penetrated by Slug. 22361_ Arm. Treads destroyed. 22365_ Penetrated by Slug. 22365_ Gauss Rifle destroyed. 22368_ Penetrated by Slug. 22374_ System corrupted: Enh. Autogun jammed. 22374_ Prc. Assault Rifle destroyed. Map ----- +----------------------------------------------------+ | ##?## ##???????#####???????#####?##### ##### # | | ##### ##??????##### ??????############# ## | | ##### ##??????### ?????#### ##### % | | ##??????##% ####?### #### # | | ########?????### % ####### ### # #### | | #######????#### #### # #### | | ###?######?####% ### # #### # | | ###?########## % ### ###### # | | ##??## #####% % % ## ######## # | | ##??## ### ## ######??## ##### | | ##??## # ##% #######??### # ####### | | ##???## ## ###% % ## ###??###### ####??? | | ##??### ### ###% % ##???##### ##????? | | ####### #### ### % ##??????## ??? | | ###### ### ! %% %%=% ##??????## ####??? | | ## %% % #### ###?????## ####??? | | ###### ###????## ##????? | | ####### % %####?### ##????## ##????? | | ####### #### ####???#####???? #????? | | #??###%* #### #;#####??####???? ?????? | | ???##!%! ########;####??????????## ?????? | | ##### ###### ######## ###### ????? | | #### ;##### # ####### ????? | | ######????? | | #### h ##???????? | | ####### @ ###### < ???????? | | ######## ### #######???? ?????????? | | ################### #;#????????????????????? | | ## ##?#######################????????????????????? | | ## ##???????????????########?????????????????????? | | ## ##????????????????????????????????????????????? | | ## ##????????????????????????????????????????????? | | ## ##????????????????????????????????????????????? | | ## ##????????????????????????????????????????????? | | ## ##????????????????????????????????????????????? | | ## ##????????????????????????????????????????????? | | ## ##????????????????????????????????????????????? | | ## ###???????????????????????????????????????????? | | ## ###???????????????????????????????????????????? | | # ###??????????????????????????????????????????? | | # ###?????????????????????????????????????????? | | ####?????????????????????????????????????????? | | # ##?????????????????????????????????????????? | | ## # ##?????????????????????????????????????????? | | ## ###?????????????????????????????????????????? | | ## #####?????????????????????????????????????????? | | ## ####?????????????????????????????????????????? | | ### #####????????????????????????????????????????? | | #### ###????????????????????????????????????????? | | #### ##????????????????????????????????????????? | +----------------------------------------------------+ Best States ------------- Heat Dissipation 70 Energy Generation 17 Energy Capacity 300 Matter Stores 300 Matter Capacity 300 Sight Range 16 Robot Scan Range 20 Terrain Scan Density 10 Armor Coverage 825 Resistance: TH 30 Evasion (%) 55 Recoil Reduction 4 Particle Charging 25 Offensive Hacking 10 Item Schematics ----------------- Hcp. Storage Unit | -10/Materials | Hacked Combat Drone Bay | -7/Data Miner | Free Lgt. Regenerative Plating | -7/Data Miner | Free Multireflex Exoskeleton | -7/Data Miner | Free Gravity Neutralizer | -7/Data Miner | Free Com. Ion Cannon | -7/Data Miner | Free Field Propulsion Drive | -7/Data Miner | Free Point Defense System | -7/Data Miner | Free KE Penetrator | -7/Data Miner | Free Focal Shield | -7/Data Miner | Free Imp. Remote Shield | -7/Data Miner | Free Imp. Point Defense System | -7/Data Miner | Free Robot Schematics ------------------ G-47 Trooper | -7/Data Miner | Free O-24 Administrator | -7/Data Miner | Free L-41 Fighter | -7/Data Miner | Free Y-54 Guardian | -7/Data Miner | Free G-50 Soldier | -7/Data Miner | Free S-27 Virus | -7/Data Miner | Free A-15 Conveyor | -7/Data Miner | Free Fabricated ------------ Nothing Repaired ---------- Assault Rifle | 7% | -10/Materials Imp. Heat Sink | 5% | -9/Materials Adv. Beam Cannon | 5% | -8/Materials Adv. Beam Cannon | 18% | -8/Materials Hrd. Heavy Armor Plating | 35% | -7/Factory Enh. Autogun | 15% | -7/Factory Studied --------- Mni. Grenade Launcher | -8/Materials | Hacked Imp. Ion Engine | -8/Materials | Hacked Arm. Huge Wheel | -7/Factory | Hacked Alien Tech Used ----------------- Core Expander Achievements -------------- None Challenges ------------ None Game ------ Seed IntegrityRingGuard Manual? 0 Play Time 04:11:38 Cumulative 284.6 hours Start 2026.02.14 @ 19:25:16 End 2026.02.16 @ 01:04:10 Sessions 17 Manual Loads 0 Difficulty Rogue Special Mode None Game No. 84 Rogue 84 Adventurer 0 Explorer 0 Win Type - Total 2 Types 2/0/0/0/0/0/0/0/0/0 Lore% 56 Gallery% 55 Achievement% 45 Wizard Run 0 Options --------- Layout 0 ASCII 1 Keyboard 1 Movement Arrows Keybinds 0 Fullscreen 1 Font 24/Smallcaps Map View 76x50 Zoom Use 0% Tactical HUD 1 Map Filters NONE Filters NONE Steam 1 RUN: 98a69485-ff23-460d-ad97-2d2dc7712153